{"text_format":"1","workbook":"xlsx","n_sheets":7,"sheets":["Autoconsumo EERR","EVALUACIÓN","Tabla de intensidades de ayuda","(1) Sustitucion consumo","(2) Impacto ambiental","(3) Replicabilidad","(4) Ahorro energético"],"not_rendered":{"charts":0,"images":3,"macros":1,"external_links":0,"defined_names":2,"comments":1,"pivot_tables":0},"unopened":[],"bounds":{"document_bytes":16777216,"sheet_cells":100000,"rows_first":2000,"rows_last":500,"rows_between":2000,"halvings":0,"cell_chars":16384,"cell_head_chars":4096},"cells_cut":0,"cells_raw":0,"read":"whole","date_system":"1900"}

{"sheet":"Autoconsumo EERR","index":0,"n_rows":332,"n_cols":12,"rows_kept":332,"cut":false,"hidden":false,"merged":[[13,1,13,4],[105,7,105,8],[11,4,11,5],[333,1,344,10],[21,1,21,11],[23,3,23,4],[24,3,24,4],[25,3,25,4],[26,3,26,4],[24,6,24,7],[25,6,25,7],[26,6,26,7],[23,6,23,7],[95,1,95,6],[96,1,96,6],[97,1,97,6],[98,1,98,6],[99,1,99,6],[100,1,100,6],[101,1,101,6],[102,1,102,6],[105,1,105,2],[103,5,103,6],[72,1,72,6],[73,1,73,6],[74,1,74,6],[75,1,75,6],[76,1,76,6],[77,1,77,6],[78,1,78,6],[79,1,79,6],[80,1,80,6],[81,1,81,6],[82,1,82,6],[83,1,83,6],[84,1,84,6],[85,1,85,6],[86,1,86,6],[87,1,87,6],[88,1,88,6],[89,1,89,6],[90,1,90,6],[91,1,91,6],[92,1,92,6],[93,1,93,6],[94,1,94,6],[95,9,95,10],[96,9,96,10],[97,9,97,10],[98,9,98,10],[99,9,99,10],[92,9,92,10],[93,9,93,10],[94,9,94,10],[100,9,100,10],[101,9,101,10],[102,9,102,10],[103,9,103,10],[72,9,72,10],[73,9,73,10],[74,9,74,10],[75,9,75,10],[76,9,76,10],[77,9,77,10],[78,9,78,10],[79,9,79,10],[80,9,80,10],[81,9,81,10],[82,9,82,10],[83,9,83,10],[84,9,84,10],[85,9,85,10],[86,9,86,10],[87,9,87,10],[88,9,88,10],[89,9,89,10],[90,9,90,10],[91,9,91,10],[74,7,74,8],[75,7,75,8],[76,7,76,8],[77,7,77,8],[78,7,78,8],[79,7,79,8],[102,7,102,8],[103,7,103,8],[92,7,92,8],[93,7,93,8],[94,7,94,8],[95,7,95,8],[96,7,96,8],[97,7,97,8],[98,7,98,8],[99,7,99,8],[100,7,100,8],[248,4,248,8],[248,9,248,10],[233,4,233,8],[233,9,233,10],[239,9,239,10],[242,9,242,10],[242,4,242,8],[0,0,1,13],[2,0,2,13],[3,0,3,13],[19,4,19,12],[17,4,17,12],[15,4,15,12],[9,4,9,12],[7,4,7,12],[7,1,7,3],[9,1,9,3],[8,0,8,9],[12,1,12,10],[11,7,11,8],[15,1,15,3],[17,1,17,3],[19,1,19,3],[13,6,13,12],[154,9,154,10],[258,4,258,8],[258,9,258,10],[285,4,285,8],[285,9,285,10],[169,9,169,10],[185,4,185,8],[185,9,185,10],[239,1,248,3],[163,4,163,8],[163,9,163,10],[162,4,162,8],[240,9,240,10],[241,9,241,10],[250,9,250,10],[251,9,251,10],[261,9,261,10],[199,9,199,10],[254,4,254,8],[254,9,254,10],[257,4,257,8],[257,9,257,10],[255,4,255,8],[255,9,255,10],[304,1,304,2],[262,4,262,8],[271,4,271,8],[262,9,262,10],[272,4,272,8],[278,4,278,8],[266,4,266,8],[266,9,266,10],[267,4,267,8],[267,9,267,10],[272,9,272,10],[274,4,274,8],[274,9,274,10],[275,4,275,8],[275,9,275,10],[260,1,269,3],[260,4,260,8],[260,9,260,10],[263,4,263,8],[287,4,287,8],[287,9,287,10],[279,4,279,8],[279,9,279,10],[286,9,286,10],[148,4,148,8],[152,9,152,10],[145,1,154,3],[148,9,148,10],[151,4,151,8],[312,1,323,10],[282,9,282,10],[292,9,292,10],[293,9,293,10],[306,1,306,5],[302,1,302,2],[302,3,302,10],[292,4,292,8],[299,4,299,8],[299,9,299,10],[296,4,296,8],[296,9,296,10],[297,4,297,8],[297,9,297,10],[288,9,288,10],[265,4,265,8],[265,9,265,10],[147,4,147,8],[286,4,286,8],[29,6,29,7],[24,1,24,2],[25,1,25,2],[29,8,29,9],[28,1,28,10],[34,1,34,10],[30,2,30,10],[31,2,31,10],[33,2,33,5],[26,1,26,2],[32,3,32,10],[126,4,126,7],[132,1,132,3],[132,4,132,8],[132,9,132,10],[44,2,44,10],[147,9,147,10],[130,1,130,10],[141,9,141,10],[140,4,140,8],[140,9,140,10],[137,4,137,8],[138,4,138,8],[139,4,139,8],[137,9,137,10],[138,9,138,10],[139,9,139,10],[134,4,134,8],[142,4,142,8],[143,4,143,8],[134,1,143,3],[133,1,133,10],[146,4,146,8],[146,9,146,10],[80,7,80,8],[134,9,134,10],[142,9,142,10],[143,9,143,10],[135,4,135,8],[136,4,136,8],[135,9,135,10],[136,9,136,10],[350,5,350,6],[156,4,156,8],[240,4,240,8],[241,4,241,8],[239,4,239,8],[310,1,310,10],[157,9,157,10],[158,9,158,10],[167,9,167,10],[168,9,168,10],[178,9,178,10],[238,1,238,10],[329,1,329,10],[196,9,196,10],[156,9,156,10],[264,4,264,8],[264,9,264,10],[141,4,141,8],[157,4,157,8],[158,4,158,8],[167,4,167,8],[168,4,168,8],[151,9,151,10],[152,4,152,8],[144,1,144,10],[155,1,155,10],[145,4,145,8],[145,9,145,10],[153,4,153,8],[153,9,153,10],[149,4,149,8],[150,4,150,8],[149,9,149,10],[150,9,150,10],[154,4,154,8],[160,4,160,8],[160,9,160,10],[161,4,161,8],[161,9,161,10],[164,4,164,8],[164,9,164,10],[162,9,162,10],[156,1,165,3],[249,1,258,3],[181,4,181,8],[181,9,181,10],[182,4,182,8],[228,1,237,3],[175,4,175,8],[175,9,175,10],[188,4,188,8],[189,4,189,8],[256,9,256,10],[218,1,227,3],[187,1,196,3],[187,4,187,8],[187,9,187,10],[237,9,237,10],[229,4,229,8],[230,4,230,8],[230,9,230,10],[200,9,200,10],[209,9,209,10],[210,9,210,10],[219,9,219,10],[177,1,186,3],[177,4,177,8],[177,9,177,10],[180,4,180,8],[180,9,180,10],[186,4,186,8],[273,4,273,8],[208,1,217,3],[217,4,217,8],[217,9,217,10],[218,9,218,10],[221,4,221,8],[221,9,221,10],[207,4,207,8],[207,9,207,10],[208,4,208,8],[219,4,219,8],[220,4,220,8],[273,9,273,10],[269,9,269,10],[268,9,268,10],[211,4,211,8],[223,4,223,8],[250,4,250,8],[184,4,184,8],[211,9,211,10],[234,4,234,8],[234,9,234,10],[235,4,235,8],[235,9,235,10],[243,4,243,8],[243,9,243,10],[237,4,237,8],[204,4,204,8],[204,9,204,10],[205,4,205,8],[205,9,205,10],[223,9,223,10],[229,9,229,10],[213,9,213,10],[214,9,214,10],[215,9,215,10],[216,9,216,10],[222,9,222,10],[208,9,208,10],[236,9,236,10],[210,4,210,8],[209,4,209,8],[101,7,101,8],[198,1,207,3],[179,9,179,10],[189,9,189,10],[192,4,192,8],[192,9,192,10],[191,4,191,8],[191,9,191,10],[190,4,190,8],[190,9,190,10],[203,4,203,8],[203,9,203,10],[206,4,206,8],[206,9,206,10],[198,4,198,8],[182,9,182,10],[188,9,188,10],[196,4,196,8],[197,1,197,10],[201,9,201,10],[199,4,199,8],[200,4,200,8],[198,9,198,10],[201,4,201,8],[282,4,282,8],[256,4,256,8],[220,9,220,10],[46,2,46,3],[48,2,48,3],[159,4,159,8],[159,9,159,10],[165,4,165,8],[165,9,165,10],[166,4,166,8],[166,9,166,10],[186,9,186,10],[176,1,176,10],[178,4,178,8],[179,4,179,8],[166,1,175,3],[169,4,169,8],[170,4,170,8],[170,9,170,10],[174,4,174,8],[174,9,174,10],[172,4,172,8],[172,9,172,10],[173,4,173,8],[212,9,212,10],[232,4,232,8],[232,9,232,10],[228,4,228,8],[228,9,228,10],[231,4,231,8],[231,9,231,10],[227,4,227,8],[227,9,227,10],[224,4,224,8],[224,9,224,10],[225,4,225,8],[225,9,225,10],[226,4,226,8],[226,9,226,10],[212,4,212,8],[298,9,298,10],[290,1,290,10],[291,1,300,3],[291,4,291,8],[291,9,291,10],[294,4,294,8],[294,9,294,10],[300,4,300,8],[300,9,300,10],[293,4,293,8],[295,4,295,8],[295,9,295,10],[298,4,298,8],[263,9,263,10],[269,4,269,8],[281,4,281,8],[278,9,278,10],[276,4,276,8],[276,9,276,10],[277,4,277,8],[277,9,277,10],[280,1,289,3],[280,4,280,8],[280,9,280,10],[283,4,283,8],[283,9,283,10],[289,4,289,8],[289,9,289,10],[281,9,281,10],[270,1,279,3],[270,9,270,10],[271,9,271,10],[268,4,268,8],[288,4,288,8],[270,4,270,8],[284,4,284,8],[284,9,284,10],[261,4,261,8],[222,4,222,8],[218,4,218,8],[216,4,216,8],[215,4,215,8],[214,4,214,8],[213,4,213,8],[259,1,259,10],[246,4,246,8],[246,9,246,10],[247,4,247,8],[247,9,247,10],[244,4,244,8],[244,9,244,10],[245,4,245,8],[245,9,245,10],[253,4,253,8],[253,9,253,10],[249,4,249,8],[249,9,249,10],[252,4,252,8],[252,9,252,10],[236,4,236,8],[251,4,251,8],[202,4,202,8],[202,9,202,10],[173,9,173,10],[183,4,183,8],[183,9,183,10],[184,9,184,10],[37,1,37,5],[38,1,38,2],[39,1,39,2],[40,1,40,2],[41,1,41,2],[37,7,37,11],[38,7,38,8],[39,7,39,8],[40,7,40,8],[41,7,41,8],[53,1,53,10],[57,8,57,9],[105,9,105,10],[70,5,70,6],[63,5,63,6],[63,1,63,4],[46,6,46,7],[68,1,68,11],[4,0,4,13],[5,0,5,13],[171,4,171,8],[171,9,171,10],[193,4,193,8],[193,9,193,10],[194,4,194,8],[194,9,194,10],[195,4,195,8],[195,9,195,10],[36,2,36,10],[72,7,72,8],[73,7,73,8],[81,7,81,8],[82,7,82,8],[83,7,83,8],[84,7,84,8],[85,7,85,8],[86,7,86,8],[87,7,87,8],[88,7,88,8],[89,7,89,8],[90,7,90,8],[91,7,91,8]]}
[]
[]
["CONVOCATORIA DE SUBVENCIONES DESTINADAS AL FOMENTO DE LA EFICIENCIA ENERGÉTICA Y EL USO DE ENERGÍAS RENOVABLES"]
["POR PARTE DE LAS EMPRESAS EN EL ÁMBITO DEL PROGRAMA OPERATIVO FEDER 2014/2020 PARA LA REGIÓN DE MURCIA"]
[2021]
["PROMOVER LA GENERACIÓN Y EL AUTOCONSUMO DE ENERGÍA FINAL"]
[]
[null,"Denominación del proyecto de inversión:"]
[]
[null,"Empresa solicitante de la subvención:"]
[null,null,null,null,null,null,null,null,null,0]
[null,null,null,"NIF:",null,null,null,"Tipo de empresa:",null," Grande","Mediana","Pequeña "]
[]
[null,"CNAE 2009 (Pulsar botón y seleccionar actividad de la lista):",null,null,null,null,"Seleccionar Actividad"]
[]
[]
[]
[]
[]
[]
[]
[null,"Consumo de energía final total anual del establecimiento y emisiones asociadas."]
[null,"(Emplear los factores de conversión del Anexo II de la Orden de convocatoria)"]
[null,null,null,"Consumo de energía final",null,null,"Emisiones"]
[null,"Combustibles",null,null,null,"tep/año",null,null,"teqCO2/año"]
[null,"Electricidad",null,null,null,"tep/año",null,null,"teqCO2/año"]
[null,"Total",null,{"$f":"D25+D26","v":0},null,"tep/año",{"$f":"G25+G26","v":0},null,"teqCO2/año"]
[]
[]
[]
[]
[]
[]
[]
[null,"Datos técnicos de la instalación de generación:"]
[]
[]
[null,"Inversores",null,null,null,null,null,"Módulos FV"]
[null,"Identificación",null,"Número","Potencia unitaria (kW)","Potencia nominal total (kW)",null,"Identificación",null,"Número","Potencia unitaria (Wp)","Potencia total del campo generador (kWp)"]
[null,null,null,null,null,{"$f":"D40*E40","v":0},null,null,null,null,null,{"$f":"(J40*K40)/1000","v":0}]
[null,null,null,null,null,{"$f":"D41*E41","v":0},null,null,null,null,null,{"$f":"(J41*K41)/1000","v":0}]
[null,null,null,null,null,{"$f":"D42*E42","v":0},null,null,null,null,null,{"$f":"(J42*K42)/1000","v":0}]
[null,null,null,null,"Total:",{"$f":"SUM(F40:F42)","v":0},null,null,null,null,"Total:",{"$f":"SUM(L40:L42)","v":0}]
[]
[]
[]
[]
[null,null,null,null,null,0]
[]
[]
[null,null,null,null,null,null,null,null,2,0]
[null,"Potencia pico total:",null,{"$f":"L43","v":0},"kW",0]
[]
[null,"Producción anual prevista:"]
[]
[null,"Producción total prevista:",null,null,"MWh/año"]
[null,"Producción autoconsumida:",null,null,"MWh/año",{"$f":"D57*0.086","v":0},"tep/año"]
[null,"Porcentaje de autoconsumo:",null,null,null,{"$f":"IF(D56<>0,D57/D56*100,0)","v":0},"%"]
[null,"Reducción del consumo de energía convencional:",null,null,null,{"$f":"IF(D27<>0,F57/D27*100,0)","v":0},"%",{"$f":"IF(F59>15,'(1) Sustitucion consumo'!A4,IF(F59>10,'(1) Sustitucion consumo'!A3,IF(F59>5,'(1) Sustitucion consumo'!A2,'(1) Sustitucion consumo'!A5)))","v":"<= 5%"}]
[null,"Reducción emisiones:",null,null,null,{"$f":"IF(G27<>0,(F57*4.05)/G27*100,0)","v":0},"%",{"$f":"IF(F60>15,'(2) Impacto ambiental'!A4,IF(F60>10,'(2) Impacto ambiental'!A3,IF(F60>5,'(2) Impacto ambiental'!A2,'(2) Impacto ambiental'!A5)))","v":"<= 5%"}]
[]
[]
[]
[null,"Contribución a la disminución del impacto ambiental:",null,null,null,"Ahorro emisiones CO2  "]
[null,null,null,null,null,"tCO2 eq/año","%"]
[]
[]
[null,"Presupuesto y coste elegible."]
[null,"Desglose exhaustivo de gastos previstos para la ejecución del proyecto de inversión, separando claramente las cantidades subvencionables atendiendo a lo dispuesto en el artículo 3 de la Orden de 28 de diciembre de 2015, reguladora de las bases, así como en el Anexo I de la convocatoria (costes elegibles)."]
[]
[]
[]
[null,"Concepto",null,null,null,null,null,"Presupuesto (€; sin IVA))",null,"Costes elegibles (€)"]
[null,"Honorarios de proyectos de ejecución y/o direcciones facultativas."]
[null,"Gastos de gestión y tramitación de autorizaciones, inscripciones o solicitudes de ayuda."]
[null,"Adquisición o arrendamiento de terrenos."]
[null,"Obra civil."]
[null,"Equipos e instalaciones."]
[null,"Montaje y conexión."]
[null,"Prevención de riesgos laborales"]
[null,"Sistemas de seguridad, vigilancia, protección, alarmas."]
[null,"Mantenimiento y/o reparación de equipos e instalaciones."]
[null,"Impuestos, tasas."]
[null,"Otros (detallar)."]
[]
[]
[]
[]
[]
[]
[]
[]
[]
[]
[]
[]
[]
[]
[]
[]
[]
[]
[]
[null,null,null,null,null,"Total:",null,{"$f":"SUM(H74:H103)","v":0},null,{"$f":"SUM(J74:J103)","v":0}]
[]
[null,null,null,null,null,null,null,"Coste elegible máximo:",null,{"$f":"MIN(J104,(0.9*1000*L43))","v":0}]
[]
[null,null,null,null,null,null,null,null,"Ratio coste elegible/potencia pico de la instalación objeto de la inversión (€/Wp):",null,{"$f":"IF(L43<>0,J106/(1000*L43),0)","v":0}]
[]
[]
[]
[]
[]
[]
[]
[]
[]
[]
[]
[]
[]
[]
[]
[null,null,null,null,null,null,null,null,null,null,20]
[null,null,null,null,null,null,null,null,{"$f":"IF(L43<=K124,2,IF(L43<=K125,3,IF(L43<=K126,4,IF(L43<=K127,5,IF(L43<=K128,6,IF(L43<=K129,7,8))))))","v":2},null,50]
[null,null,null,null,null,null,null,null,{"$f":"IF(J11=0,\"\",INDIRECT(IF(J11=1,\"'Tabla de intensidades de ayuda'!D\",IF(J11=2,\"'Tabla de intensidades de ayuda'!C\",IF(J11=3,\"'Tabla de intensidades de ayuda'!B\"))) &I125))","v":""},null,100]
[null,null,null,null,"Ayuda solicitada (€):",null,null,null,null,null,150]
[null,null,null,null,null,null,null,null,null,null,200]
[null,null,null,null,null,null,null,null,null,null,250]
[]
[]
[]
[]
[]
[]
[]
[]
[]
[]
[]
[]
[]
[]
[]
[]
[]
[]
[]
[]
[]
[]
[]
[]
[]
[]
[]
[]
[]
[]
[]
[]
[]
[]
[]
[]
[]
[]
[]
[]
[]
[]
[]
[]
[]
[]
[]
[]
[]
[]
[]
[]
[]
[]
[]
[]
[]
[]
[]
[]
[]
[]
[]
[]
[]
[]
[]
[]
[]
[]
[]
[]
[]
[]
[]
[]
[]
[]
[]
[]
[]
[]
[]
[]
[]
[]
[]
[]
[]
[]
[]
[]
[]
[]
[]
[]
[]
[]
[]
[]
[]
[]
[]
[]
[]
[]
[]
[]
[]
[]
[]
[]
[]
[]
[]
[]
[]
[]
[]
[]
[]
[]
[]
[]
[]
[]
[]
[]
[]
[]
[]
[]
[]
[]
[]
[]
[]
[]
[]
[]
[]
[]
[]
[]
[]
[]
[]
[]
[]
[]
[]
[]
[]
[]
[]
[]
[]
[]
[]
[]
[]
[]
[]
[]
[]
[]
[]
[]
[]
[]
[]
[]
[]
[]
[]
[]
[]
[null,"Grado de sustitución de consumos de energías convencionales:      ",null,null,null,null,{"$f":"IF(F59>15,'(1) Sustitucion consumo'!A4,IF(F59>10,'(1) Sustitucion consumo'!A3,IF(F59>5,'(1) Sustitucion consumo'!A2,'(1) Sustitucion consumo'!A5)))","v":"<= 5%"}]
[]
[null,"Replicabilidad y efecto demostrativo:",null,null,"    960 Otros servicios personales"]
[]
[null,"¿El proyecto de inversión sirve como base para experiencia piloto o demostrativa?  (justificar):"]
[]
[]
[]
[]
[]
[]
[]
[]
[]
[]
[]
[]
[]
[]
[]
[null,"Contribución potencial a la disminución del impacto ambiental: ",null,null,null,null,"% Ahorro"]
[null,null,null,null,null,null,{"$f":"IF(F60>15,'(2) Impacto ambiental'!A4,IF(F60>10,'(2) Impacto ambiental'!A3,IF(F60>5,'(2) Impacto ambiental'!A2,'(2) Impacto ambiental'!A5)))","v":"<= 5%"}]
[]
[]
[]
[null,"Número de puestos de trabajo directos e indirectos derivados de la ejecución de la actuación (justificar):",null,null,null,null,null,null,null,null,null,"puestos"]

{"sheet":"EVALUACIÓN","index":1,"n_rows":10,"n_cols":8,"rows_kept":10,"cut":false,"hidden":true,"merged":[[0,0,1,7],[2,0,2,1]]}
[" VALORACIÓN DE LA SOLICITUD"]
[]
["Código de colores",null,"PLAN  DE INVERSIONES","GRADO SUSTITICIÓN CONSUMOS DE ENERGÍAS CONVENCIONALES","REPLICABILIDAD Y EFECTO DEMOSTRATIVO","CONTRIBUCIÓN DISMINUCIÓN IMPACTO AMBIENTAL","GENERACIÓN ACTIVIDAD ECONÓMICA / EMPLEO LOCAL","CALIDAD Y RIGOR ELABORACIÓN DOCUMENTACIÓN T."]
[null,"Valoración por técnico","A","B","C","D","E","F"]
[null,"Valoración automática",null,0,{"$f":"E8+E10","v":1},0,0]
[]
[null,"Total",null,null,"REPLICABILIDAD",null,null,"VALORACIÓN TOTAL"]
[null,null,null,null,1,0,null,{"$f":"C5+D5+E5+F5+G5+H5","v":1}]
[null,null,null,null,"EFECTO DEMOSTRATIVO"]
[null,null,null,null,0]

{"sheet":"Tabla de intensidades de ayuda","index":2,"n_rows":8,"n_cols":4,"rows_kept":8,"cut":false,"hidden":true,"merged":[]}
["Potencia nominal de la instalación","Gran Empresa","Mediana Empresa","Pequeña Empresa"]
["P<= 20 kW",0.1,0.15,0.2]
["20kW<P<=50 kW",0.15,0.2,0.25]
["50kW<P<=100kW",0.2,0.25,0.3]
["100kW<P<=150kW",0.25,0.3,0.35]
["150kW<=P<200kW",0.3,0.35,0.45]
["200kW<P<=250kW",0.35,0.45,0.55000000000000004]
["P<250kW",0.45,0.55000000000000004,0.65]

{"sheet":"(1) Sustitucion consumo","index":3,"n_rows":5,"n_cols":2,"rows_kept":5,"cut":false,"hidden":true,"merged":[]}
["SUSTITUCIÓN DEL CONSUMO ENERGÉTICO CONVECIONAL GLOBAL DEL ESTABLECIMIENTO POR ENERGÍA RENOVABLE","PUNTOS"]
["Mayor 5%",10]
["Mayor 10%",15]
["Mayor 15%",25]
["<= 5%",0]

{"sheet":"(2) Impacto ambiental","index":4,"n_rows":5,"n_cols":2,"rows_kept":5,"cut":false,"hidden":true,"merged":[]}
["DISMINUCIÓN RELATIVA DE EMISIONES EQUIVALENTES DE CO2","PUNTOS"]
["Mayor 5%",10]
["Mayor 10%",15]
["Mayor 15%",20]
["<= 5%"]

{"sheet":"(3) Replicabilidad","index":5,"n_rows":261,"n_cols":6,"rows_kept":261,"cut":false,"hidden":true,"merged":[[0,0,1,3]]}
["Actividad CNAE 2009"]
[]
["Seleccionar la actividad desarrollada en el establecimiento donde se realiza la actuación."]
[]
[]
[""]
[]
["CNAE  Actividad",null,"ORDEN",0,null,8]
["    563 Establecimientos de bebidas",5055,1]
["    412 Construcción de edificios",4280,2]
["    477 Comercio al por menor de otros artículos en establecimientos especializados",4257,3]
["    960 Otros servicios personales",3939,4]
["    494 Transporte de mercancías por carretera y servicios de mudanza",3372,5]
["    472 Comercio al por menor de productos alimenticios, bebidas y tabaco en establecimientos especializados",2671,6]
["    411 Promoción inmobiliaria",2607,7]
["    691 Actividades jurídicas",2551,8]
["    682 Alquiler de bienes inmobiliarios por cuenta propia",2535,9]
["    475 Comercio al por menor de otros artículos de uso doméstico en establecimientos especializados",2477,10]
["    432 Instalaciones eléctricas, de fontanería y otras instalaciones en obras de construcción",2406,11]
["    463 Comercio al por mayor de productos alimenticios, bebidas y tabaco",2256,12]
["    461 Intermediarios del comercio",2253,13]
["    711 Servicios técnicos de arquitectura e ingeniería y otras actividades relacionadas con el asesoramiento técnico",2207,14]
["    692 Actividades de contabilidad, teneduría de libros, auditoría y asesoría fiscal",2003,15]
["    478 Comercio al por menor en puestos de venta y en mercadillos",1985,16]
["    862 Actividades médicas y odontológicas",1956,17]
["    855 Otra educación",1924,18]
["    829 Actividades de apoyo a las empresas n.c.o.p.",1903,19]
["    662 Actividades auxiliares a seguros y fondos de pensiones",1882,20]
["    869 Otras actividades sanitarias",1833,21]
["    433 Acabado de edificios",1813,22]
["    452 Mantenimiento y reparación de vehículos de motor",1633,23]
["    561 Restaurantes y puestos de comidas",1557,24]
["    471 Comercio al por menor en establecimientos no especializados",1410,25]
["    683 Actividades inmobiliarias por cuenta de terceros",1327,26]
["    467 Otro comercio al por mayor especializado",1218,27]
["    949 Otras actividades asociativas",1051,28]
["    464 Comercio al por mayor de artículos de uso doméstico",1035,29]
["    812 Actividades de limpieza",934,30]
["    476 Comercio al por menor de artículos culturales y recreativos en establecimientos especializados",917,31]
["    493 Otro transporte terrestre de pasajeros",830,32]
["    310 Fabricación de muebles",785,33]
["    931 Actividades deportivas",759,34]
["    731 Publicidad",669,35]
["    466 Comercio al por mayor de otra maquinaria, equipos y suministros",660,36]
["    251 Fabricación de elementos metálicos para la construcción",593,37]
["    620 Programación, consultoría y otras actividades relacionadas con la informática",578,38]
["    952 Reparación de efectos personales y artículos de uso doméstico",577,39]
["    773 Alquiler de otra maquinaria, equipos y bienes tangibles",560,40]
["    900 Actividades de creación, artísticas y espectáculos",552,41]
["    522 Actividades anexas al transporte",516,42]
["    451 Venta de vehículos de motor",496,43]
["    351 Producción, transporte y distribución de energía eléctrica",480,44]
["    562 Provisión de comidas preparadas para eventos y otros servicios de comidas",477,45]
["    749 Otras actividades profesionales, científicas y técnicas n.c.o.p.",457,46]
["    439 Otras actividades de construcción especializada",409,47]
["    431 Demolición y preparación de terrenos",399,48]
["    107 Fabricación de productos de panadería y pastas alimenticias",393,49]
["    331 Reparación de productos metálicos, maquinaria y equipo",387,50]
["    462 Comercio al por mayor de materias primas agrarias y de animales vivos",383,51]
["    474 Comercio al por menor de equipos para las tecnologías de la información y las comunicaciones en establecimientos especializados",379,52]
["    853 Educación secundaria",377,53]
["    932 Actividades recreativas y de entretenimiento",366,54]
["    712 Ensayos y análisis técnicos",363,55]
["    702 Actividades de consultoría de gestión empresarial",361,56]
["    742 Actividades de fotografía",356,57]
["    920 Actividades de juegos de azar y apuestas",352,58]
["    813 Actividades de jardinería",350,59]
["    453 Comercio de repuestos y accesorios de vehículos de motor",345,60]
["    181 Artes gráficas y servicios relacionados con las mismas",331,61]
["    429 Construcción de otros proyectos de ingeniería civil",304,62]
["    750 Actividades veterinarias",290,63]
["    951 Reparación de ordenadores y equipos de comunicación",290,64]
["    162 Fabricación de productos de madera, corcho, cestería y espartería",279,65]
["    532 Otras actividades postales y de correos",276,66]
["    479 Comercio al por menor no realizado ni en establecimientos, ni en puestos de venta ni en mercadillos",261,67]
["    473 Comercio al por menor de combustible para la automoción en establecimientos especializados",253,68]
["    469 Comercio al por mayor no especializado",247,69]
["    821 Actividades administrativas y auxiliares de oficina",241,70]
["    360 Captación, depuración y distribución de agua",225,71]
["    851 Educación preprimaria",224,72]
["    141 Confección de prendas de vestir, excepto de peletería",204,73]
["    791 Actividades de agencias de viajes y operadores turísticos",186,74]
["    771 Alquiler de vehículos de motor",174,75]
["    139 Fabricación de otros productos textiles",162,76]
["    103 Procesado y conservación de frutas y hortalizas",160,77]
["    237 Corte, tallado y acabado de la piedra",160,78]
["    108 Fabricación de otros productos alimenticios",156,79]
["    152 Fabricación de calzado",154,80]
["    454 Venta, mantenimiento y reparación de motocicletas y de sus repuestos y accesorios",153,81]
["    222 Fabricación de productos de plástico",152,82]
["    256 Tratamiento y revestimiento de metales; ingeniería mecánica por cuenta de terceros",151,83]
["    551 Hoteles y alojamientos similares",151,84]
["    941 Actividades de organizaciones empresariales, profesionales y patronales",151,85]
["    325 Fabricación de instrumentos y suministros médicos y odontológicos",146,86]
["    721 Investigación y desarrollo experimental en ciencias naturales y técnicas",133,87]
["    552 Alojamientos turísticos y otros alojamientos de corta estancia",124,88]
["    743 Actividades de traducción e interpretación",118,89]
["    465 Comercio al por mayor de equipos para las tecnologías de la información y las comunicaciones",117,90]
["    289 Fabricación de otra maquinaria para usos específicos",115,91]
["    236 Fabricación de elementos de hormigón, cemento y yeso",109,92]
["    101 Procesado y conservación de carne y elaboración de productos cárnicos",108,93]
["    110 Fabricación de bebidas",108,94]
["    619 Otras actividades de telecomunicaciones",104,95]
["    631 Proceso de datos, hosting y actividades relacionadas; portales web",104,96]
["    854 Educación postsecundaria",102,97]
["    852 Educación primaria",99,98]
["    581 Edición de libros, periódicos y otras actividades editoriales",98,99]
["    661 Actividades auxiliares a los servicios financieros, excepto seguros y fondos de pensiones",88,100]
["    259 Fabricación de otros productos metálicos",86,101]
["    081 Extracción de piedra, arena y arcilla",85,102]
["    910 Actividades de bibliotecas, archivos, museos y otras actividades culturales",85,103]
["    772 Alquiler de efectos personales y artículos de uso doméstico",83,104]
["    591 Actividades cinematográficas, de vídeo y de programas de televisión",80,105]
["    823 Organización de convenciones y ferias de muestras",80,106]
["    381 Recogida de residuos",79,107]
["    801 Actividades de seguridad privada",79,108]
["    881 Actividades de servicios sociales sin alojamiento para personas mayores y con discapacidad",73,109]
["    722 Investigación y desarrollo experimental en ciencias sociales y humanidades",70,110]
["    204 Fabricación de jabones, detergentes y otros artículos de limpieza y abrillantamiento; fabricación de perfumes y cosméticos",69,111]
["    257 Fabricación de artículos de cuchillería y cubertería, herramientas y ferretería",65,112]
["    282 Fabricación de otra maquinaria de uso general",63,113]
["    701 Actividades de las sedes centrales",62,114]
["    172 Fabricación de artículos de papel y de cartón",56,115]
["    611 Telecomunicaciones por cable",56,116]
["    329 Industrias manufactureras n.c.o.p.",52,117]
["    873 Asistencia en establecimientos residenciales para personas mayores y con discapacidad física",51,118]
["    782 Actividades de las empresas de trabajo temporal",49,119]
["    105 Fabricación de productos lácteos",47,120]
["    283 Fabricación de maquinaria agraria y forestal",46,121]
["    601 Actividades de radiodifusión",45,122]
["    781 Actividades de las agencias de colocación",44,123]
["    741 Actividades de diseño especializado",43,124]
["    811 Servicios integrales a edificios e instalaciones",43,125]
["    201 Fabricación de productos químicos básicos, compuestos nitrogenados, fertilizantes, plásticos y caucho sintético en formas primarias",41,126]
["    205 Fabricación de otros productos químicos",40,127]
["    255 Forja, estampación y embutición de metales; metalurgia de polvos",40,128]
["    421 Construcción de carreteras y vías férreas, puentes y túneles",40,129]
["    889 Otros actividades de servicios sociales sin alojamiento",40,130]
["    732 Estudios de mercado y realización de encuestas de opinión pública",39,131]
["    292 Fabricación de carrocerías para vehículos de motor; fabricación de remolques y semirremolques",38,132]
["    422 Construcción de redes",38,133]
["    521 Depósito y almacenamiento",38,134]
["    582 Edición de programas informáticos",37,135]
["    321 Fabricación de artículos de joyería, bisutería y similares",36,136]
["    151 Preparación, curtido y acabado del cuero; fabricación de artículos de marroquinería, viaje y de guarnicionería y talabartería; preparación y teñido de pieles",34,137]
["    109 Fabricación de productos para la alimentación animal",33,138]
["    234 Fabricación de otros productos cerámicos",33,139]
["    104 Fabricación de aceites y grasas vegetales y animales",32,140]
["    231 Fabricación de vidrio y productos de vidrio",32,141]
["    602 Actividades de programación y emisión de televisión",32,142]
["    861 Actividades hospitalarias",28,143]
["    612 Telecomunicaciones inalámbricas",27,144]
["    553 Campings y aparcamientos para caravanas",26,145]
["    803 Actividades de investigación",26,146]
["    856 Actividades auxiliares a la educación",25,147]
["    370 Recogida y tratamiento de aguas residuales",24,148]
["    681 Compraventa de bienes inmobiliarios por cuenta propia",23,149]
["    221 Fabricación de productos de caucho",22,150]
["    161 Aserrado y cepillado de la madera",21,151]
["    203 Fabricación de pinturas, barnices y revestimientos similares; tintas de imprenta y masillas",21,152]
["    799 Otros servicios de reservas y actividades relacionadas con los mismos",21,153]
["    642 Actividades de las sociedades holding",20,154]
["    102 Procesado y conservación de pescados, crustáceos y moluscos",19,155]
["    382 Tratamiento y eliminación de residuos",19,156]
["    233 Fabricación de productos cerámicos para la construcción",17,157]
["    274 Fabricación de lámparas y aparatos eléctricos de iluminación",17,158]
["    293 Fabricación de componentes, piezas y accesorios para vehículos de motor",17,159]
["    271 Fabricación de motores, generadores y transformadores eléctricos, y de aparatos de distribución y control eléctrico",16,160]
["    284 Fabricación de máquinas herramienta para trabajar el metal y otras máquinas herramienta",16,161]
["    301 Construcción naval",16,162]
["    332 Instalación de máquinas y equipos industriales",16,163]
["    252 Fabricación de cisternas, grandes depósitos y contenedores de metal",15,164]
["    281 Fabricación de maquinaria de uso general",15,165]
["    324 Fabricación de juegos y juguetes",15,166]
["    639 Otros servicios de información",15,167]
["    262 Fabricación de ordenadores y equipos periféricos",14,168]
["    390 Actividades de descontaminación y otros servicios de gestión de residuos",14,169]
["    649 Otros servicios financieros, excepto seguros y fondos de pensiones",14,170]
["    651 Seguros",14,171]
["    131 Preparación e hilado de fibras textiles",13,172]
["    182 Reproducción de soportes grabados",13,173]
["    261 Fabricación de componentes electrónicos y circuitos impresos ensamblados",13,174]
["    245 Fundición de metales",12,175]
["    265 Fabricación de instrumentos y aparatos de medida, verificación y navegación; fabricación de relojes",12,176]
["    501 Transporte marítimo de pasajeros",12,177]
["    133 Acabado de textiles",11,178]
["    383 Valorización",11,179]
["    106 Fabricación de productos de molinería, almidones y productos amiláceos",10,180]
["    242 Fabricación de tubos, tuberías, perfiles huecos y sus accesorios, de acero",10,181]
["    243 Fabricación de otros productos de primera transformación del acero",10,182]
["    323 Fabricación de artículos de deporte",10,183]
["    353 Suministro de vapor y aire acondicionado",10,184]
["    643 Inversión colectiva, fondos y entidades financieras similares",10,185]
["    171 Fabricación de pasta papelera, papel y cartón",9,186]
["    783 Otra provisión de recursos humanos",9,187]
["    802 Servicios de sistemas de seguridad",9,188]
["    275 Fabricación de aparatos domésticos",8,189]
["    613 Telecomunicaciones por satélite",8,190]
["    871 Asistencia en establecimientos residenciales con cuidados sanitarios",8,191]
["    942 Actividades sindicales",8,192]
["    244 Producción de metales preciosos y de otros metales no férreos",7,193]
["    309 Fabricación de material de transporte n.c.o.p.",7,194]
["    241 Fabricación de productos básicos de hierro, acero y ferroaleaciones",6,195]
["    279 Fabricación de otro material y equipo eléctrico",6,196]
["    559 Otros alojamientos",6,197]
["    653 Fondos de pensiones",6,198]
["    822 Actividades de los centros de llamadas",6,199]
["    132 Fabricación de tejidos textiles ",5,200]
["    202 Fabricación de pesticidas y otros productos agroquímicos",5,201]
["    239 Fabricación de productos abrasivos y productos minerales no metálicos n.c.o.p.",5,202]
["    872 Asistencia en establecimientos residenciales para personas con discapacidad intelectual, enfermedad mental y drogodependencia",5,203]
["    089 Industrias extractivas n.c.o.p.",4,204]
["    143 Confección de prendas de vestir de punto",4,205]
["    211 Fabricación de productos farmacéuticos de base",4,206]
["    266 Fabricación de equipos de radiación, electromédicos y electroterapéuticos",4,207]
["    641 Intermediación monetaria",4,208]
["    774 Arrendamiento de la propiedad intelectual y productos similares, excepto trabajos protegidos por los derechos de autor",4,209]
["    206 Fabricación de fibras artificiales y sintéticas",3,210]
["    235 Fabricación de cemento, cal y yeso",3,211]
["    322 Fabricación de instrumentos musicales",3,212]
["    502 Transporte marítimo de mercancías",3,213]
["    071 Extracción de minerales de hierro",2,214]
["    212 Fabricación de especialidades farmacéuticas",2,215]
["    253 Fabricación de generadores de vapor, excepto calderas de calefacción central",2,216]
["    267 Fabricación de instrumentos de óptica y equipo fotográfico",2,217]
["    273 Fabricación de cables y dispositivos de cableado",2,218]
["    291 Fabricación de vehículos de motor",2,219]
["    352 Producción de gas; distribución por tubería de combustibles gaseosos",2,220]
["    511 Transporte aéreo de pasajeros",2,221]
["    592 Actividades de grabación de sonido y edición musical",2,222]
["    879 Otras actividades de asistencia en establecimientos residenciales",2,223]
["    091 Actividades de apoyo a la extracción de petróleo y gas natural",1,224]
["    099 Actividades de apoyo a otras industrias extractivas",1,225]
["    120 Industria del tabaco",1,226]
["    263 Fabricación de equipos de telecomunicaciones",1,227]
["    272 Fabricación de pilas y acumuladores eléctricos",1,228]
["    495 Transporte por tubería",1,229]
["    663 Actividades de gestión de fondos",1,230]
["    051 Extracción de antracita y hulla",0,231]
["    052 Extracción de lignito",0,232]
["    061 Extracción de crudo de petróleo",0,233]
["    062 Extracción de gas natural",0,234]
["    072 Extracción de minerales metálicos no férreos",0,235]
["    142 Fabricación de artículos de peletería",0,236]
["    191 Coquerías",0,237]
["    192 Refino de petróleo",0,238]
["    232 Fabricación de productos cerámicos refractarios",0,239]
["    254 Fabricación de armas y municiones",0,240]
["    264 Fabricación de productos electrónicos de consumo",0,241]
["    268 Fabricación de soportes magnéticos y ópticos",0,242]
["    302 Fabricación de locomotoras y material ferroviario",0,243]
["    303 Construcción aeronáutica y espacial y su maquinaria",0,244]
["    304 Fabricación de vehículos militares de combate",0,245]
["    491 Transporte interurbano de pasajeros por ferrocarril",0,246]
["    492 Transporte de mercancías por ferrocarril",0,247]
["    503 Transporte de pasajeros por vías navegables interiores",0,248]
["    504 Transporte de mercancías por vías navegables interiores",0,249]
["    512 Transporte aéreo de mercancías y transporte espacial",0,250]
["    531 Actividades postales sometidas a la obligación del servicio universal",0,251]
["    652 Reaseguros",0,252]
[null,{"$f":"SUM(B9:B260)","v":93574}]

{"sheet":"(4) Ahorro energético","index":6,"n_rows":4,"n_cols":2,"rows_kept":4,"cut":false,"hidden":true,"merged":[]}
["PREVISIÓN DE AHORRO RELATIVO DE ENERGÍA PRIMARIA","PUNTOS"]
["Mayor del 5%",5]
["Mayor del 10%",10]
["Mayor del 15%",15]